[Event "Late-Titled-Tuesday-Blitz-February-27-2024"]
[Site "Chess.com"]
[Date "2024.02.27"]
[Round "6"]
[White "ProChessWICTH"]
[Black "MyDream003"]
[Result "1/2-1/2"]
[WhiteElo "2560"]
[BlackElo "2716"]
[TimeControl "180+1"]
[EndTime "15:07:37 PST"]
[Termination "Game drawn by repetition"]

1. d4 {[%clk 0:03:00.9]} 1... Nf6 {[%clk 0:02:59.6]} 2. c4 {[%clk 0:03:01.2]}
2... b6 {[%clk 0:02:59.4]} 3. Nc3 {[%clk 0:03:00.5]} 3... Bb7 {[%clk 0:02:59.3]}
4. Qc2 {[%clk 0:02:57.9]} 4... d5 {[%clk 0:02:59.7]} 5. Nf3 {[%clk 0:02:55.8]}
5... e6 {[%clk 0:02:58.7]} 6. cxd5 {[%clk 0:02:55.3]} 6... exd5 {[%clk
0:02:58.5]} 7. Bg5 {[%clk 0:02:54]} 7... Be7 {[%clk 0:02:55.5]} 8. e3 {[%clk
0:02:53.5]} 8... O-O {[%clk 0:02:53.5]} 9. Bd3 {[%clk 0:02:52.8]} 9... Nbd7
{[%clk 0:02:54.1]} 10. O-O {[%clk 0:02:49.1]} 10... h6 {[%clk 0:02:53.2]} 11.
Bf4 {[%clk 0:02:46]} 11... c5 {[%clk 0:02:50.1]} 12. h3 {[%clk 0:02:43]} 12...
a6 {[%clk 0:02:47.8]} 13. Ne5 {[%clk 0:02:32]} 13... c4 {[%clk 0:02:40.4]} 14.
Bf5 {[%clk 0:02:29.6]} 14... b5 {[%clk 0:02:40.7]} 15. a3 {[%clk 0:02:27.5]}
15... Nb6 {[%clk 0:02:41]} 16. Qe2 {[%clk 0:02:24.1]} 16... Bc8 {[%clk
0:02:28.7]} 17. Bc2 {[%clk 0:02:16.8]} 17... Qe8 {[%clk 0:02:28.3]} 18. Rae1
{[%clk 0:02:05.4]} 18... Bb7 {[%clk 0:02:24.1]} 19. Qf3 {[%clk 0:02:03.6]} 19...
Rc8 {[%clk 0:01:48.7]} 20. Bf5 {[%clk 0:01:56.2]} 20... Rd8 {[%clk 0:01:44.1]}
21. g4 {[%clk 0:01:43.2]} 21... a5 {[%clk 0:01:43.6]} 22. h4 {[%clk 0:01:39.9]}
22... b4 {[%clk 0:01:44]} 23. axb4 {[%clk 0:01:39.2]} 23... axb4 {[%clk
0:01:44.9]} 24. g5 {[%clk 0:01:33.4]} 24... bxc3 {[%clk 0:01:40.4]} 25. gxf6
{[%clk 0:01:33]} 25... Bxf6 {[%clk 0:01:41.3]} 26. bxc3 {[%clk 0:01:31.7]} 26...
Bc8 {[%clk 0:01:35.8]} 27. Bc2 {[%clk 0:01:25.9]} 27... Qe6 {[%clk 0:01:16.2]}
28. Qg3 {[%clk 0:01:20]} 28... Qh3 {[%clk 0:01:10.3]} 29. Rb1 {[%clk 0:01:17.3]}
29... Qxg3+ {[%clk 0:01:06.3]} 30. Bxg3 {[%clk 0:01:17.9]} 30... Nd7 {[%clk
0:01:03]} 31. Nc6 {[%clk 0:01:16.4]} 31... Rde8 {[%clk 0:01:03.4]} 32. Bd6
{[%clk 0:01:13.6]} 32... Re6 {[%clk 0:01:00]} 33. Bxf8 {[%clk 0:01:11.1]} 33...
Nxf8 {[%clk 0:01:00.2]} 34. Na7 {[%clk 0:01:05.1]} 34... Bd7 {[%clk 0:01:00.1]}
35. Bf5 {[%clk 0:01:03.1]} 35... Rd6 {[%clk 0:00:51.1]} 36. Bxd7 {[%clk
0:01:03]} 36... Rxd7 {[%clk 0:00:52]} 37. Nc8 {[%clk 0:00:50.9]} 37... Ne6
{[%clk 0:00:43.3]} 38. h5 {[%clk 0:00:48.1]} 38... Bd8 {[%clk 0:00:39.5]} 39.
Rb8 {[%clk 0:00:45.7]} 39... Kh7 {[%clk 0:00:38.9]} 40. Rfb1 {[%clk 0:00:43.7]}
40... g6 {[%clk 0:00:27.9]} 41. hxg6+ {[%clk 0:00:37.8]} 41... Kxg6 {[%clk
0:00:28.8]} 42. R8b7 {[%clk 0:00:36.1]} 42... Bc7 {[%clk 0:00:28.2]} 43. R1b5
{[%clk 0:00:27]} 43... Rd8 {[%clk 0:00:28.5]} 44. Ne7+ {[%clk 0:00:22.3]} 44...
Kg7 {[%clk 0:00:28.1]} 45. Nxd5 {[%clk 0:00:23.2]} 45... Bd6 {[%clk 0:00:28.3]}
46. e4 {[%clk 0:00:18.5]} 46... Ra8 {[%clk 0:00:27.5]} 47. e5 {[%clk 0:00:16.5]}
47... Bf8 {[%clk 0:00:28]} 48. Rd7 {[%clk 0:00:13.2]} 48... Ng5 {[%clk
0:00:19.2]} 49. Kg2 {[%clk 0:00:10.9]} 49... Ra2 {[%clk 0:00:18.6]} 50. Rbb7
{[%clk 0:00:10.3]} 50... Kg6 {[%clk 0:00:19]} 51. Nf4+ {[%clk 0:00:09]} 51...
Kg7 {[%clk 0:00:15]} 52. e6 {[%clk 0:00:08.3]} 52... Kf6 {[%clk 0:00:11.8]} 53.
Rxf7+ {[%clk 0:00:06.6]} 53... Nxf7 {[%clk 0:00:11.8]} 54. Rxf7+ {[%clk
0:00:07.5]} 54... Kg5 {[%clk 0:00:11.9]} 55. e7 {[%clk 0:00:07.7]} 55... Bxe7
{[%clk 0:00:10.9]} 56. Nh3+ {[%clk 0:00:06.8]} 56... Kh4 {[%clk 0:00:10.2]} 57.
Rxe7 {[%clk 0:00:07.7]} 57... Rc2 {[%clk 0:00:07.9]} 58. Re3 {[%clk 0:00:08.6]}
58... Kg4 {[%clk 0:00:07.6]} 59. Ng1 {[%clk 0:00:08.4]} 59... Rd2 {[%clk
0:00:07.5]} 60. Rg3+ {[%clk 0:00:08.3]} 60... Kf4 {[%clk 0:00:07.6]} 61. Nh3+
{[%clk 0:00:08]} 61... Ke4 {[%clk 0:00:07.8]} 62. Ng1 {[%clk 0:00:06.3]} 62...
Rd1 {[%clk 0:00:07.8]} 63. Nf3 {[%clk 0:00:05.7]} 63... Kf4 {[%clk 0:00:08.4]}
64. Ne5 {[%clk 0:00:06]} 64... h5 {[%clk 0:00:07.6]} 65. Nxc4 {[%clk 0:00:06.6]}
65... h4 {[%clk 0:00:07.9]} 66. Rf3+ {[%clk 0:00:06.9]} 66... Kg5 {[%clk
0:00:08.2]} 67. Ne5 {[%clk 0:00:07.1]} 67... Rc1 {[%clk 0:00:08]} 68. d5 {[%clk
0:00:07.1]} 68... Rd1 {[%clk 0:00:08.2]} 69. c4 {[%clk 0:00:06.3]} 69... Re1
{[%clk 0:00:08.2]} 70. Nc6 {[%clk 0:00:05.7]} 70... Rc1 {[%clk 0:00:08.1]} 71.
Ne5 {[%clk 0:00:04.4]} 71... Re1 {[%clk 0:00:07.3]} 72. Re3 {[%clk 0:00:04.8]}
72... Rd1 {[%clk 0:00:07.5]} 73. Nc6 {[%clk 0:00:03.9]} 73... Kg4 {[%clk
0:00:07.5]} 74. Ne7 {[%clk 0:00:03.2]} 74... Rd2 {[%clk 0:00:07.3]} 75. Rf3
{[%clk 0:00:02.3]} 75... Rd1 {[%clk 0:00:06.8]} 76. Re3 {[%clk 0:00:02.7]} 76...
Rd2 {[%clk 0:00:07.2]} 77. Ng6 {[%clk 0:00:03.2]} 77... Kg5 {[%clk 0:00:07.4]}
78. Ne5 {[%clk 0:00:03.7]} 78... Rd1 {[%clk 0:00:07.4]} 79. Nf3+ {[%clk
0:00:04.4]} 79... Kg4 {[%clk 0:00:07.5]} 80. Ne5+ {[%clk 0:00:04.2]} 80... Kg5
{[%clk 0:00:08]} 1/2-1/2

[Event "Late-Titled-Tuesday-Blitz-February-27-2024"]
[Site "Chess.com"]
[Date "2024.02.27"]
[Round "6"]
[White "LyonBeast"]
[Black "MITerryble"]
[Result "1-0"]
[WhiteElo "3140"]
[BlackElo "3018"]
[TimeControl "180+1"]
[EndTime "15:07:46 PST"]
[Termination "LyonBeast won on time"]

1. Nf3 {[%clk 0:03:00.9]} 1... d5 {[%clk 0:02:59.9]} 2. g3 {[%clk 0:03:00.9]}
2... Nf6 {[%clk 0:03:00.4]} 3. Bg2 {[%clk 0:03:01.4]} 3... c6 {[%clk 0:03:01.3]}
4. O-O {[%clk 0:03:01.6]} 4... Bg4 {[%clk 0:03:01.9]} 5. h3 {[%clk 0:02:58.7]}
5... Bxf3 {[%clk 0:02:59]} 6. Bxf3 {[%clk 0:02:59.6]} 6... e5 {[%clk 0:02:59.2]}
7. d3 {[%clk 0:03:00]} 7... Nbd7 {[%clk 0:02:58.3]} 8. Nd2 {[%clk 0:02:59.1]}
8... Nc5 {[%clk 0:02:55]} 9. Bg2 {[%clk 0:02:55]} 9... a5 {[%clk 0:02:54.3]} 10.
c3 {[%clk 0:02:50.7]} 10... Bd6 {[%clk 0:02:51.9]} 11. Qc2 {[%clk 0:02:48.6]}
11... O-O {[%clk 0:02:51.6]} 12. e4 {[%clk 0:02:47.8]} 12... dxe4 {[%clk
0:02:50.1]} 13. dxe4 {[%clk 0:02:48.7]} 13... Bc7 {[%clk 0:02:47.8]} 14. Nc4
{[%clk 0:02:37.7]} 14... Qd3 {[%clk 0:02:45.6]} 15. Qxd3 {[%clk 0:02:37.8]}
15... Nxd3 {[%clk 0:02:46.5]} 16. Bg5 {[%clk 0:02:28.6]} 16... b5 {[%clk
0:02:40.4]} 17. Ne3 {[%clk 0:02:28.9]} 17... Nxb2 {[%clk 0:02:38.2]} 18. Bxf6
{[%clk 0:02:27.3]} 18... gxf6 {[%clk 0:02:38.2]} 19. Nf5 {[%clk 0:02:08.4]}
19... Kh8 {[%clk 0:02:24.1]} 20. Rab1 {[%clk 0:02:02.7]} 20... Na4 {[%clk
0:02:22.1]} 21. Rfc1 {[%clk 0:02:02.6]} 21... Rfd8 {[%clk 0:02:17.1]} 22. Rc2
{[%clk 0:01:51.9]} 22... Rd7 {[%clk 0:02:01.1]} 23. Bf3 {[%clk 0:01:42.3]} 23...
Rad8 {[%clk 0:01:58.2]} 24. Bh5 {[%clk 0:01:28.3]} 24... Kg8 {[%clk 0:01:51.9]}
25. Rbc1 {[%clk 0:01:23]} 25... Kf8 {[%clk 0:01:51]} 26. Kf1 {[%clk 0:01:07.8]}
26... Rd2 {[%clk 0:01:48.2]} 27. Ke1 {[%clk 0:01:08.2]} 27... R2d7 {[%clk
0:01:43.5]} 28. Be2 {[%clk 0:01:04]} 28... Bb6 {[%clk 0:01:40.1]} 29. h4 {[%clk
0:00:57.6]} 29... Bc5 {[%clk 0:01:36.2]} 30. Rb1 {[%clk 0:00:47.5]} 30... Be7
{[%clk 0:01:28.7]} 31. f3 {[%clk 0:00:40.8]} 31... Bc5 {[%clk 0:01:25.4]} 32.
Bf1 {[%clk 0:00:38.4]} 32... Ba7 {[%clk 0:00:56]} 33. Be2 {[%clk 0:00:38.5]}
33... Nc5 {[%clk 0:00:55.8]} 34. Kf1 {[%clk 0:00:34.4]} 34... Rd2 {[%clk
0:00:54.5]} 35. Rxd2 {[%clk 0:00:33.4]} 35... Rxd2 {[%clk 0:00:55.4]} 36. Rd1
{[%clk 0:00:33.7]} 36... Rxd1+ {[%clk 0:00:52.2]} 37. Bxd1 {[%clk 0:00:34.6]}
37... Nd3 {[%clk 0:00:48.9]} 38. Bc2 {[%clk 0:00:34.4]} 38... Nb2 {[%clk
0:00:31.1]} 39. Ke2 {[%clk 0:00:34.7]} 39... Bc5 {[%clk 0:00:30.7]} 40. Nh6
{[%clk 0:00:29.4]} 40... a4 {[%clk 0:00:29.5]} 41. Nf5 {[%clk 0:00:29]} 41...
Nc4 {[%clk 0:00:28]} 42. Bd3 {[%clk 0:00:29.4]} 42... Nb6 {[%clk 0:00:25.5]} 43.
Bc2 {[%clk 0:00:28.9]} 43... Na8 {[%clk 0:00:24.9]} 44. Bd3 {[%clk 0:00:25.3]}
44... Nc7 {[%clk 0:00:25.2]} 45. Bc2 {[%clk 0:00:25.7]} 45... Ne6 {[%clk
0:00:25.6]} 46. Bd1 {[%clk 0:00:25.5]} 46... Ba3 {[%clk 0:00:25.8]} 47. Bc2
{[%clk 0:00:25.3]} 47... Bc1 {[%clk 0:00:21.5]} 48. Kd1 {[%clk 0:00:25]} 48...
Bb2 {[%clk 0:00:20.3]} 49. Kd2 {[%clk 0:00:25.5]} 49... Nc5 {[%clk 0:00:20.2]}
50. Ne3 {[%clk 0:00:20.7]} 50... Na6 {[%clk 0:00:18.9]} 51. Nd1 {[%clk
0:00:19.2]} 51... Ba3 {[%clk 0:00:18.9]} 52. Ne3 {[%clk 0:00:20]} 52... Nc7
{[%clk 0:00:19.1]} 53. Nf5 {[%clk 0:00:20.5]} 53... Ne6 {[%clk 0:00:19.5]} 54.
Ke2 {[%clk 0:00:21]} 54... Nc5 {[%clk 0:00:19.6]} 55. Kd2 {[%clk 0:00:21.2]}
55... Na6 {[%clk 0:00:19.6]} 56. Ke2 {[%clk 0:00:21.6]} 56... Be7 {[%clk
0:00:18.5]} 57. Kd2 {[%clk 0:00:21.9]} 57... Nc7 {[%clk 0:00:16.9]} 58. Ke2
{[%clk 0:00:22.2]} 58... Na8 {[%clk 0:00:17.3]} 59. Kd2 {[%clk 0:00:22]} 59...
Nb6 {[%clk 0:00:17.9]} 60. Bd3 {[%clk 0:00:22.1]} 60... Ba3 {[%clk 0:00:16.4]}
61. Kc2 {[%clk 0:00:22.1]} 61... Ke8 {[%clk 0:00:15.7]} 62. Ng7+ {[%clk
0:00:20.5]} 62... Kd8 {[%clk 0:00:15.4]} 63. Nf5 {[%clk 0:00:21.4]} 63... Bf8
{[%clk 0:00:15.2]} 64. Kd2 {[%clk 0:00:21.3]} 64... Kd7 {[%clk 0:00:15.5]} 65.
Kc2 {[%clk 0:00:21.6]} 65... Kc7 {[%clk 0:00:16]} 66. Be2 {[%clk 0:00:21.9]}
66... Nd7 {[%clk 0:00:16]} 67. f4 {[%clk 0:00:20.6]} 67... exf4 {[%clk
0:00:12.2]} 68. gxf4 {[%clk 0:00:21.5]} 68... Nc5 {[%clk 0:00:12.9]} 69. Bh5
{[%clk 0:00:22.1]} 69... Nxe4 {[%clk 0:00:07.7]} 70. Bxf7 {[%clk 0:00:22.3]}
70... Nc5 {[%clk 0:00:06.9]} 71. h5 {[%clk 0:00:20.3]} 71... h6 {[%clk
0:00:06.8]} 72. Nd4 {[%clk 0:00:18.4]} 72... Kd7 {[%clk 0:00:05.4]} 73. Bg6
{[%clk 0:00:18.3]} 73... Kd6 {[%clk 0:00:03.6]} 74. Bf5 {[%clk 0:00:17.7]} 74...
Kc7 {[%clk 0:00:03.2]} 75. Bg4 {[%clk 0:00:17.8]} 75... Bd6 {[%clk 0:00:02.9]}
76. Bf3 {[%clk 0:00:16.9]} 76... Bxf4 {[%clk 0:00:02.8]} 77. Bxc6 {[%clk
0:00:15.8]} 77... Be5 {[%clk 0:00:03]} 78. Bxb5 {[%clk 0:00:16]} 78... Kb6
{[%clk 0:00:02.6]} 79. Bc4 {[%clk 0:00:10.4]} 79... a3 {[%clk 0:00:02.9]} 80.
Nf5 {[%clk 0:00:10.2]} 80... Ne4 {[%clk 0:00:03]} 81. Nxh6 {[%clk 0:00:10.5]}
81... Ng3 {[%clk 0:00:02.3]} 82. Bf7 {[%clk 0:00:10.5]} 82... f5 {[%clk
0:00:02.5]} 83. Bg6 {[%clk 0:00:10.3]} 83... f4 {[%clk 0:00:02.6]} 84. Ng4
{[%clk 0:00:10.9]} 84... Bh8 {[%clk 0:00:02.1]} 85. h6 {[%clk 0:00:10.4]} 85...
f3 {[%clk 0:00:02.6]} 86. Bd3 {[%clk 0:00:09.6]} 86... Kc5 {[%clk 0:00:02.3]}
87. h7 {[%clk 0:00:09.5]} 87... Kd6 {[%clk 0:00:01.8]} 88. Kd2 {[%clk
0:00:09.3]} 1-0

[Event "Late-Titled-Tuesday-Blitz-February-27-2024"]
[Site "Chess.com"]
[Date "2024.02.27"]
[Round "6"]
[White "dawid498"]
[Black "jaskol95"]
[Result "0-1"]
[WhiteElo "2699"]
[BlackElo "2565"]
[TimeControl "180+1"]
[EndTime "15:07:52 PST"]
[Termination "jaskol95 won by checkmate"]

1. e4 {[%clk 0:03:00.9]} 1... d5 {[%clk 0:03:00.3]} 2. d3 {[%clk 0:02:58.9]}
2... e5 {[%clk 0:02:57.8]} 3. Nf3 {[%clk 0:02:56.7]} 3... Nc6 {[%clk 0:02:56.2]}
4. Nbd2 {[%clk 0:02:54.2]} 4... Nf6 {[%clk 0:02:55.4]} 5. c3 {[%clk 0:02:52.5]}
5... a5 {[%clk 0:02:53.3]} 6. a4 {[%clk 0:02:50.2]} 6... Bc5 {[%clk 0:02:53.2]}
7. Be2 {[%clk 0:02:49.7]} 7... O-O {[%clk 0:02:51.8]} 8. O-O {[%clk 0:02:50.4]}
8... h6 {[%clk 0:02:47]} 9. h3 {[%clk 0:02:42]} 9... Be6 {[%clk 0:02:45.4]} 10.
Re1 {[%clk 0:02:34.6]} 10... Qd7 {[%clk 0:02:37.2]} 11. Bf1 {[%clk 0:02:10.6]}
11... dxe4 {[%clk 0:02:30.3]} 12. dxe4 {[%clk 0:02:10.6]} 12... Rad8 {[%clk
0:02:26.2]} 13. Qc2 {[%clk 0:02:07.9]} 13... Ne8 {[%clk 0:01:43.4]} 14. Nc4
{[%clk 0:01:26.7]} 14... f6 {[%clk 0:01:42.2]} 15. Be3 {[%clk 0:01:09.6]} 15...
Bxe3 {[%clk 0:01:41.2]} 16. Nxe3 {[%clk 0:01:10]} 16... Nd6 {[%clk 0:01:41.7]}
17. Rad1 {[%clk 0:00:51.2]} 17... Qf7 {[%clk 0:01:40.5]} 18. Nd5 {[%clk
0:00:47.9]} 18... Nxe4 {[%clk 0:01:24.2]} 19. Nxc7 {[%clk 0:00:34]} 19... Bb3
{[%clk 0:01:07.4]} 20. Qxe4 {[%clk 0:00:31.3]} 20... Qxc7 {[%clk 0:01:01.3]} 21.
Bc4+ {[%clk 0:00:29.9]} 21... Bxc4 {[%clk 0:01:00.4]} 22. Qxc4+ {[%clk
0:00:30.8]} 22... Qf7 {[%clk 0:01:00.9]} 23. Qb5 {[%clk 0:00:28.4]} 23... Qc7
{[%clk 0:00:41.8]} 24. Rd5 {[%clk 0:00:23.2]} 24... Rxd5 {[%clk 0:00:39.5]} 25.
Qxd5+ {[%clk 0:00:24.1]} 25... Qf7 {[%clk 0:00:40]} 26. Rd1 {[%clk 0:00:19.8]}
26... Rd8 {[%clk 0:00:33.6]} 27. Qxf7+ {[%clk 0:00:15.7]} 27... Kxf7 {[%clk
0:00:34.5]} 28. Rxd8 {[%clk 0:00:14.6]} 28... Nxd8 {[%clk 0:00:35.4]} 29. Kf1
{[%clk 0:00:15.2]} 29... Ke6 {[%clk 0:00:36]} 30. Ke2 {[%clk 0:00:15.6]} 30...
Kd5 {[%clk 0:00:36.6]} 31. Nd2 {[%clk 0:00:14.7]} 31... Ne6 {[%clk 0:00:33.7]}
32. g3 {[%clk 0:00:11.8]} 32... Nc5 {[%clk 0:00:32.8]} 33. b3 {[%clk 0:00:11.1]}
33... Ne4 {[%clk 0:00:29.1]} 34. Nb1 {[%clk 0:00:04.5]} 34... f5 {[%clk
0:00:27.5]} 35. Ke3 {[%clk 0:00:04]} 35... Nc5 {[%clk 0:00:26.8]} 36. Nd2 {[%clk
0:00:02]} 36... g5 {[%clk 0:00:27.4]} 37. f3 {[%clk 0:00:02.3]} 37... f4+ {[%clk
0:00:27.5]} 38. gxf4 {[%clk 0:00:02.9]} 38... exf4+ {[%clk 0:00:27.9]} 39. Ke2
{[%clk 0:00:03.1]} 39... h5 {[%clk 0:00:23.9]} 40. Kf2 {[%clk 0:00:02.7]} 40...
Ke6 {[%clk 0:00:14.7]} 41. Ke2 {[%clk 0:00:03]} 41... Kf5 {[%clk 0:00:14.3]} 42.
b4 {[%clk 0:00:02]} 42... Nxa4 {[%clk 0:00:12.9]} 43. bxa5 {[%clk 0:00:02.1]}
43... Nxc3+ {[%clk 0:00:13.4]} 44. Kd3 {[%clk 0:00:02.7]} 44... Nd5 {[%clk
0:00:10.2]} 45. Nc4 {[%clk 0:00:02.1]} 45... Ke6 {[%clk 0:00:04]} 46. Ke4 {[%clk
0:00:02]} 46... Nc3+ {[%clk 0:00:04.2]} 47. Kd3 {[%clk 0:00:01.5]} 47... Nd5
{[%clk 0:00:04.2]} 48. Ke4 {[%clk 0:00:02.1]} 48... Nb4 {[%clk 0:00:04.5]} 49.
Ne5 {[%clk 0:00:01.2]} 49... Nc6 {[%clk 0:00:04.2]} 50. Nc4 {[%clk 0:00:01.9]}
50... Kf6 {[%clk 0:00:03.8]} 51. Kd5 {[%clk 0:00:02.2]} 51... Kf5 {[%clk
0:00:04.5]} 52. Kd6 {[%clk 0:00:02.2]} 52... g4 {[%clk 0:00:05]} 53. hxg4+
{[%clk 0:00:02.5]} 53... hxg4 {[%clk 0:00:05.9]} 54. fxg4+ {[%clk 0:00:03.3]}
54... Kxg4 {[%clk 0:00:06.6]} 55. Kc7 {[%clk 0:00:03.9]} 55... Nxa5 {[%clk
0:00:06.6]} 56. Nxa5 {[%clk 0:00:04.6]} 56... f3 {[%clk 0:00:07.2]} 57. Nc4
{[%clk 0:00:04.9]} 57... f2 {[%clk 0:00:07.2]} 58. Nd2 {[%clk 0:00:04.9]} 58...
b5 {[%clk 0:00:07.8]} 59. Kc6 {[%clk 0:00:04.6]} 59... b4 {[%clk 0:00:08.3]} 60.
Kc5 {[%clk 0:00:05.2]} 60... b3 {[%clk 0:00:09]} 61. Kd4 {[%clk 0:00:05.2]}
61... b2 {[%clk 0:00:09.6]} 62. Ke3 {[%clk 0:00:06]} 62... f1=Q {[%clk
0:00:08.2]} 63. Nxf1 {[%clk 0:00:05.7]} 63... b1=Q {[%clk 0:00:08.9]} 64. Nd2
{[%clk 0:00:06.4]} 64... Qe1+ {[%clk 0:00:09.1]} 65. Kd3 {[%clk 0:00:06.7]}
65... Kf4 {[%clk 0:00:08.2]} 66. Nc4 {[%clk 0:00:06.6]} 66... Qd1+ {[%clk
0:00:07.9]} 67. Kc3 {[%clk 0:00:07.1]} 67... Ke4 {[%clk 0:00:06.7]} 68. Nd2+
{[%clk 0:00:07.6]} 68... Ke3 {[%clk 0:00:07.3]} 69. Nc4+ {[%clk 0:00:08.2]}
69... Ke2 {[%clk 0:00:08.1]} 70. Kb4 {[%clk 0:00:08.8]} 70... Qd3 {[%clk
0:00:08.1]} 71. Kc5 {[%clk 0:00:09]} 71... Qc3 {[%clk 0:00:08.4]} 72. Kd5 {[%clk
0:00:09.3]} 72... Kd3 {[%clk 0:00:08.4]} 73. Ne5+ {[%clk 0:00:10]} 73... Ke3
{[%clk 0:00:08.9]} 74. Nc4+ {[%clk 0:00:09.9]} 74... Kf4 {[%clk 0:00:09.4]} 75.
Nd6 {[%clk 0:00:10.1]} 75... Qe5+ {[%clk 0:00:08.9]} 76. Kc6 {[%clk 0:00:10.7]}
76... Qd4 {[%clk 0:00:06.8]} 77. Nb7 {[%clk 0:00:05.4]} 77... Ke5 {[%clk
0:00:06.8]} 78. Nc5 {[%clk 0:00:05.3]} 78... Qc4 {[%clk 0:00:07.1]} 79. Kb6
{[%clk 0:00:04.8]} 79... Kd5 {[%clk 0:00:07]} 80. Nb7 {[%clk 0:00:03.7]} 80...
Qb4+ {[%clk 0:00:07.1]} 81. Kc7 {[%clk 0:00:04.2]} 81... Qb5 {[%clk 0:00:06.2]}
82. Nd8 {[%clk 0:00:04.1]} 82... Qa5+ {[%clk 0:00:05.5]} 83. Kd7 {[%clk
0:00:04.4]} 83... Qa7+ {[%clk 0:00:05.8]} 84. Ke8 {[%clk 0:00:05.1]} 84... Kd6
{[%clk 0:00:03.3]} 85. Nf7+ {[%clk 0:00:05.7]} 85... Ke6 {[%clk 0:00:03.8]} 86.
Nd8+ {[%clk 0:00:06.4]} 86... Kf6 {[%clk 0:00:04.1]} 87. Nc6 {[%clk 0:00:07.1]}
87... Qc7 {[%clk 0:00:03.1]} 88. Kf8 {[%clk 0:00:06.9]} 88... Qxc6 {[%clk
0:00:03.3]} 89. Kg8 {[%clk 0:00:07]} 89... Qc8+ {[%clk 0:00:03.8]} 90. Kh7
{[%clk 0:00:07.9]} 90... Qa8 {[%clk 0:00:04.4]} 91. Kh6 {[%clk 0:00:08.5]} 91...
Qh8# {[%clk 0:00:05.2]} 0-1

[Event "Late-Titled-Tuesday-Blitz-February-27-2024"]
[Site "Chess.com"]
[Date "2024.02.27"]
[Round "7"]
[White "WilsonPalencia21"]
[Black "fidetrainerNET"]
[Result "1-0"]
[WhiteElo "2565"]
[BlackElo "2333"]
[TimeControl "180+1"]
[EndTime "15:12:14 PST"]
[Termination "WilsonPalencia21 won by checkmate"]

1. d4 {[%clk 0:03:00]} 1... Nf6 {[%clk 0:02:52.8]} 2. Nf3 {[%clk 0:02:59.8]}
2... e6 {[%clk 0:02:52.9]} 3. c4 {[%clk 0:02:58.2]} 3... Bb4+ {[%clk 0:02:51.7]}
4. Nbd2 {[%clk 0:02:56.6]} 4... c5 {[%clk 0:02:49.9]} 5. a3 {[%clk 0:02:55.9]}
5... Bxd2+ {[%clk 0:02:47.2]} 6. Qxd2 {[%clk 0:02:56.8]} 6... cxd4 {[%clk
0:02:44.7]} 7. Nxd4 {[%clk 0:02:55.6]} 7... O-O {[%clk 0:02:45.6]} 8. Nb5 {[%clk
0:02:55.6]} 8... d5 {[%clk 0:02:45]} 9. e3 {[%clk 0:02:55.8]} 9... a6 {[%clk
0:02:43.8]} 10. Nc3 {[%clk 0:02:55.3]} 10... Nc6 {[%clk 0:02:43.2]} 11. Be2
{[%clk 0:02:54.3]} 11... d4 {[%clk 0:02:42]} 12. exd4 {[%clk 0:02:52.1]} 12...
Qxd4 {[%clk 0:02:41.3]} 13. O-O {[%clk 0:02:50.7]} 13... e5 {[%clk 0:02:39.2]}
14. Qc2 {[%clk 0:02:46.3]} 14... Be6 {[%clk 0:02:36]} 15. Be3 {[%clk 0:02:45.2]}
15... Qh4 {[%clk 0:02:35.3]} 16. Rfd1 {[%clk 0:02:39.2]} 16... Nd4 {[%clk
0:02:27.6]} 17. Bxd4 {[%clk 0:02:29]} 17... exd4 {[%clk 0:02:28.5]} 18. g3
{[%clk 0:02:29.3]} 18... Qh3 {[%clk 0:02:11.7]} 19. Rxd4 {[%clk 0:02:27.8]}
19... Ng4 {[%clk 0:02:10.5]} 20. Bxg4 {[%clk 0:02:18.6]} 20... Bxg4 {[%clk
0:02:11.4]} 21. Qe4 {[%clk 0:02:16.5]} 21... Rad8 {[%clk 0:02:04.6]} 22. Qxg4
{[%clk 0:02:12.3]} 22... Qxg4 {[%clk 0:02:02]} 23. Rxg4 {[%clk 0:02:11.8]} 23...
Rd2 {[%clk 0:02:02.9]} 24. Rb1 {[%clk 0:02:11.5]} 24... Rc8 {[%clk 0:02:01.3]}
25. Nd5 {[%clk 0:02:09.8]} 25... Rxc4 {[%clk 0:01:59.6]} 26. Rxc4 {[%clk
0:02:08.1]} 26... Rxd5 {[%clk 0:01:58.5]} 27. Rc8+ {[%clk 0:02:07.9]} 27... Rd8
{[%clk 0:01:59.4]} 28. Rxd8# {[%clk 0:02:08.5]} 1-0

[Event "Late-Titled-Tuesday-Blitz-February-27-2024"]
[Site "Chess.com"]
[Date "2024.02.27"]
[Round "7"]
[White "Evandro_Barbosa"]
[Black "Boorchess"]
[Result "1-0"]
[WhiteElo "2676"]
[BlackElo "2523"]
[TimeControl "180+1"]
[EndTime "15:12:34 PST"]
[Termination "Evandro_Barbosa won by resignation"]

1. Nf3 {[%clk 0:03:00.9]} 1... d5 {[%clk 0:02:59.6]} 2. g3 {[%clk 0:03:00]} 2...
Bg4 {[%clk 0:02:58.8]} 3. Bg2 {[%clk 0:03:00.2]} 3... e6 {[%clk 0:02:58.5]} 4.
O-O {[%clk 0:03:00.6]} 4... Nd7 {[%clk 0:02:58.3]} 5. d4 {[%clk 0:03:00.4]} 5...
Ngf6 {[%clk 0:02:57.1]} 6. Nbd2 {[%clk 0:03:00.8]} 6... Be7 {[%clk 0:02:56.9]}
7. Re1 {[%clk 0:03:01.1]} 7... O-O {[%clk 0:02:56.5]} 8. e4 {[%clk 0:03:01.2]}
8... dxe4 {[%clk 0:02:55.4]} 9. Nxe4 {[%clk 0:03:01.5]} 9... Nxe4 {[%clk
0:02:55.4]} 10. Rxe4 {[%clk 0:03:02]} 10... Nf6 {[%clk 0:02:54.9]} 11. Re1
{[%clk 0:03:01.4]} 11... c5 {[%clk 0:02:53]} 12. c3 {[%clk 0:02:58.4]} 12...
cxd4 {[%clk 0:02:36.5]} 13. Qxd4 {[%clk 0:02:57.4]} 13... Qxd4 {[%clk
0:02:19.4]} 14. Nxd4 {[%clk 0:02:58.3]} 14... Rad8 {[%clk 0:01:36.3]} 15. Bxb7
{[%clk 0:02:56.4]} 15... Bc5 {[%clk 0:01:34.8]} 16. Be3 {[%clk 0:02:53.3]} 16...
Bb6 {[%clk 0:01:26]} 17. Bg2 {[%clk 0:02:49]} 17... Nd5 {[%clk 0:01:24.2]} 18.
Bg5 {[%clk 0:02:45]} 18... Rd7 {[%clk 0:01:18.8]} 19. Nc6 {[%clk 0:02:42.5]}
19... h6 {[%clk 0:01:14.6]} 20. Ne5 {[%clk 0:02:40.7]} 20... Rb7 {[%clk
0:01:10.2]} 21. Nxg4 {[%clk 0:02:35.8]} 21... hxg5 {[%clk 0:01:07.8]} 22. c4
{[%clk 0:02:35.4]} 1-0